[Event "*** SCC Grand Prix: Titled Tuesday Blitz"]
[Site "Chess.com"]
[Date "2020.08.25"]
[Round "3"]
[White "marcocordeiro2013"]
[Black "jacky72"]
[Result "0-1"]
[WhiteElo "2222"]
[BlackElo "2546"]
[TimeControl "180+1"]
[EndTime "10:28:00 PDT"]
[Termination "jacky72 won by resignation"]

1. d4 {[%clk 0:03:00.9]} 1... d5 {[%clk 0:02:58.9]} 2. c4 {[%clk 0:03:00.7]}
2... c6 {[%clk 0:02:59.1]} 3. cxd5 {[%clk 0:02:59.5]} 3... cxd5 {[%clk
0:02:59.1]} 4. Nc3 {[%clk 0:03:00.4]} 4... Nc6 {[%clk 0:02:59.6]} 5. Nf3 {[%clk
0:03:00.4]} 5... Nf6 {[%clk 0:03:00.5]} 6. Bf4 {[%clk 0:02:59.9]} 6... a6 {[%clk
0:03:01.4]} 7. e3 {[%clk 0:02:59.9]} 7... e6 {[%clk 0:03:02.3]} 8. Rc1 {[%clk
0:02:59]} 8... Be7 {[%clk 0:03:03.2]} 9. Bd3 {[%clk 0:02:58.9]} 9... O-O {[%clk
0:03:04.1]} 10. O-O {[%clk 0:02:58.8]} 10... Nh5 {[%clk 0:03:04.2]} 11. Bg3
{[%clk 0:02:57.5]} 11... Nxg3 {[%clk 0:03:03.9]} 12. hxg3 {[%clk 0:02:58.4]}
12... Bd7 {[%clk 0:03:04.2]} 13. a3 {[%clk 0:02:57.5]} 13... b5 {[%clk
0:03:04.6]} 14. e4 {[%clk 0:02:52.3]} 14... dxe4 {[%clk 0:03:02.8]} 15. Nxe4
{[%clk 0:02:53.2]} 15... Rc8 {[%clk 0:03:03.1]} 16. Nc5 {[%clk 0:02:52.8]} 16...
Nxd4 {[%clk 0:02:57.4]} 17. Nxd4 {[%clk 0:02:12.8]} 17... Bxc5 {[%clk
0:02:55.8]} 18. Bxh7+ {[%clk 0:02:08.1]} 18... Kxh7 {[%clk 0:02:55.5]} 19. Qh5+
{[%clk 0:02:07.8]} 19... Kg8 {[%clk 0:02:55.8]} 20. Rxc5 {[%clk 0:02:07.8]}
20... Qf6 {[%clk 0:02:48]} 21. Rd1 {[%clk 0:01:46.8]} 21... Rxc5 {[%clk
0:02:46.2]} 22. Qxc5 {[%clk 0:01:45.9]} 22... Rc8 {[%clk 0:02:47.1]} 23. Qd6
{[%clk 0:01:39.1]} 23... Be8 {[%clk 0:02:45.2]} 24. Qxa6 {[%clk 0:01:35.8]}
24... Rd8 {[%clk 0:02:41.9]} 25. Qb6 {[%clk 0:01:33.3]} 25... e5 {[%clk
0:02:42.4]} 26. Qxf6 {[%clk 0:01:13.8]} 26... gxf6 {[%clk 0:02:43.3]} 27. Kf1
{[%clk 0:01:02]} 27... exd4 {[%clk 0:02:43]} 28. Ke2 {[%clk 0:01:01.1]} 28... b4
{[%clk 0:02:43.9]} 29. Kd3 {[%clk 0:01:00]} 29... Bb5+ {[%clk 0:02:43.4]} 30.
Kd2 {[%clk 0:00:55.8]} 30... bxa3 {[%clk 0:02:42.9]} 31. bxa3 {[%clk 0:00:55.3]}
31... Re8 {[%clk 0:02:43.5]} 32. Rb1 {[%clk 0:00:49.2]} 32... Re2+ {[%clk
0:02:42.5]} 33. Kd1 {[%clk 0:00:49.4]} 33... Ba6 {[%clk 0:02:35.4]} 34. Rb6
{[%clk 0:00:43.3]} 34... Re6 {[%clk 0:02:35.5]} 35. Rb8+ {[%clk 0:00:42.8]}
35... Kg7 {[%clk 0:02:35.4]} 36. Rd8 {[%clk 0:00:42.7]} 36... d3 {[%clk
0:02:35.7]} 37. f3 {[%clk 0:00:35]} 37... Re2 {[%clk 0:02:35.5]} 38. Rd6 {[%clk
0:00:34.3]} 38... Bc4 {[%clk 0:02:35.2]} 39. Rd4 {[%clk 0:00:29.4]} 39... Bb3+
{[%clk 0:02:34.7]} 40. Kc1 {[%clk 0:00:29.7]} 40... Rc2+ {[%clk 0:02:28]} 41.
Kb1 {[%clk 0:00:25.2]} 41... Rxg2 {[%clk 0:02:28.9]} 0-1

[Event "*** SCC Grand Prix: Titled Tuesday Blitz"]
[Site "Chess.com"]
[Date "2020.08.25"]
[Round "3"]
[White "aNaartjieZA"]
[Black "Kaliopa"]
[Result "1-0"]
[WhiteElo "2478"]
[BlackElo "2201"]
[TimeControl "180+1"]
[EndTime "10:28:04 PDT"]
[Termination "aNaartjieZA won by resignation"]

1. e4 {[%clk 0:03:00.9]} 1... c5 {[%clk 0:02:59.4]} 2. Nf3 {[%clk 0:03:00.9]}
2... d6 {[%clk 0:02:59.6]} 3. g3 {[%clk 0:03:01.1]} 3... Nc6 {[%clk 0:02:56.7]}
4. Bg2 {[%clk 0:03:00.9]} 4... g6 {[%clk 0:02:56.4]} 5. O-O {[%clk 0:03:00.9]}
5... Bg7 {[%clk 0:02:55.9]} 6. c3 {[%clk 0:03:01.2]} 6... e5 {[%clk 0:02:43.1]}
7. d3 {[%clk 0:03:00.1]} 7... Nge7 {[%clk 0:02:42.6]} 8. a3 {[%clk 0:03:00.3]}
8... O-O {[%clk 0:02:41.8]} 9. b4 {[%clk 0:03:00.3]} 9... b6 {[%clk 0:02:40.9]}
10. Nbd2 {[%clk 0:02:59.5]} 10... Bb7 {[%clk 0:02:35.6]} 11. Bb2 {[%clk
0:02:59.4]} 11... Qd7 {[%clk 0:02:33.2]} 12. Re1 {[%clk 0:02:56]} 12... Rfe8
{[%clk 0:02:23.2]} 13. b5 {[%clk 0:02:54.3]} 13... Nd8 {[%clk 0:02:22.3]} 14. a4
{[%clk 0:02:54.3]} 14... d5 {[%clk 0:02:13.6]} 15. exd5 {[%clk 0:02:48.7]} 15...
Nxd5 {[%clk 0:02:11.8]} 16. Nc4 {[%clk 0:02:48]} 16... f6 {[%clk 0:02:03.3]} 17.
Qb3 {[%clk 0:02:47.5]} 17... Kh8 {[%clk 0:02:01]} 18. a5 {[%clk 0:02:44.6]}
18... Ne6 {[%clk 0:01:47.4]} 19. a6 {[%clk 0:02:42.9]} 19... Bc8 {[%clk
0:01:47]} 20. Rad1 {[%clk 0:02:40.9]} 20... Rb8 {[%clk 0:01:40.4]} 21. d4 {[%clk
0:02:35]} 21... cxd4 {[%clk 0:01:17.4]} 22. cxd4 {[%clk 0:02:34.2]} 22... Qf7
{[%clk 0:01:07]} 23. Nd6 {[%clk 0:02:31.9]} 23... Qd7 {[%clk 0:00:52.8]} 24.
Nxe8 {[%clk 0:02:28.7]} 24... Qxe8 {[%clk 0:00:46.9]} 25. Qxd5 {[%clk
0:02:27.7]} 25... Bd7 {[%clk 0:00:42.9]} 26. dxe5 {[%clk 0:02:24.3]} 26... fxe5
{[%clk 0:00:32.2]} 27. Bxe5 {[%clk 0:02:14.5]} 27... Rd8 {[%clk 0:00:21.5]} 28.
Bxg7+ {[%clk 0:02:08.9]} 28... Kxg7 {[%clk 0:00:22.4]} 29. Rxe6 {[%clk
0:02:04.2]} 29... Qxe6 {[%clk 0:00:14.9]} 30. Qxe6 {[%clk 0:02:03.8]} 1-0

[Event "*** SCC Grand Prix: Titled Tuesday Blitz"]
[Site "Chess.com"]
[Date "2020.08.25"]
[Round "3"]
[White "PlotnikovPavel"]
[Black "fish7728"]
[Result "1-0"]
[WhiteElo "2473"]
[BlackElo "2183"]
[TimeControl "180+1"]
[EndTime "10:28:14 PDT"]
[Termination "PlotnikovPavel won by resignation"]

1. e4 {[%clk 0:03:00.9]} 1... c5 {[%clk 0:02:59.4]} 2. c3 {[%clk 0:03:00.7]}
2... Nf6 {[%clk 0:02:59.2]} 3. e5 {[%clk 0:03:00.7]} 3... Nd5 {[%clk 0:02:59.6]}
4. d4 {[%clk 0:03:01.3]} 4... e6 {[%clk 0:02:58.4]} 5. Nf3 {[%clk 0:02:57.3]}
5... d6 {[%clk 0:02:57.9]} 6. dxc5 {[%clk 0:02:48.8]} 6... dxc5 {[%clk
0:02:55.1]} 7. c4 {[%clk 0:02:47.1]} 7... Nb4 {[%clk 0:02:49.8]} 8. Qxd8+ {[%clk
0:02:46.3]} 8... Kxd8 {[%clk 0:02:50.1]} 9. Na3 {[%clk 0:02:46.8]} 9... a6
{[%clk 0:02:49.5]} 10. Bg5+ {[%clk 0:02:46.6]} 10... Kc7 {[%clk 0:02:37.9]} 11.
O-O-O {[%clk 0:02:46.4]} 11... Nxa2+ {[%clk 0:02:20.3]} 12. Kb1 {[%clk 0:02:46]}
12... Nb4 {[%clk 0:02:20.4]} 13. Nb5+ {[%clk 0:02:32.3]} 13... Kc6 {[%clk
0:01:54.6]} 14. Rd8 {[%clk 0:02:25.6]} 14... axb5 {[%clk 0:01:13.9]} 15. Rxc8+
{[%clk 0:02:21.5]} 15... Kd7 {[%clk 0:01:14.1]} 16. Rd8+ {[%clk 0:02:20.1]}
16... Kc7 {[%clk 0:01:14.6]} 17. Be7 {[%clk 0:02:11.1]} 17... Bxe7 {[%clk
0:00:55.3]} 18. Rxh8 {[%clk 0:02:10.4]} 18... Ra5 {[%clk 0:00:31.8]} 19. cxb5
{[%clk 0:02:05.6]} 19... Nd7 {[%clk 0:00:30.1]} 20. Be2 {[%clk 0:01:56.5]} 20...
Nb6 {[%clk 0:00:29.6]} 21. Rxh7 {[%clk 0:01:55.5]} 21... Ra2 {[%clk 0:00:20.9]}
22. Rd1 {[%clk 0:01:51.4]} 22... Na4 {[%clk 0:00:20.3]} 23. Rd2 {[%clk
0:01:51.2]} 23... c4 {[%clk 0:00:08.3]} 24. Bxc4 {[%clk 0:01:49.1]} 24... Rxb2+
{[%clk 0:00:08.3]} 25. Rxb2 {[%clk 0:01:48.5]} 25... Nc3+ {[%clk 0:00:08.8]} 1-0

[Event "*** SCC Grand Prix: Titled Tuesday Blitz"]
[Site "Chess.com"]
[Date "2020.08.25"]
[Round "3"]
[White "ChessWarrior3"]
[Black "VladimirBugayev"]
[Result "1-0"]
[WhiteElo "2108"]
[BlackElo "2295"]
[TimeControl "180+1"]
[EndTime "10:28:16 PDT"]
[Termination "ChessWarrior3 won by checkmate"]

1. e4 {[%clk 0:03:00.9]} 1... c6 {[%clk 0:02:59.6]} 2. d4 {[%clk 0:02:59.9]}
2... d5 {[%clk 0:02:59.6]} 3. e5 {[%clk 0:02:58.6]} 3... Bf5 {[%clk 0:02:59.5]}
4. h4 {[%clk 0:02:57.5]} 4... h6 {[%clk 0:02:58.5]} 5. g4 {[%clk 0:02:56.4]}
5... Be4 {[%clk 0:02:59]} 6. f3 {[%clk 0:02:54.4]} 6... Bh7 {[%clk 0:02:59.2]}
7. e6 {[%clk 0:02:38.6]} 7... Qd6 {[%clk 0:02:59.1]} 8. exf7+ {[%clk 0:02:30.4]}
8... Kxf7 {[%clk 0:03:00]} 9. f4 {[%clk 0:02:28.3]} 9... Nf6 {[%clk 0:02:59]}
10. Nf3 {[%clk 0:02:24.7]} 10... Nxg4 {[%clk 0:02:58.7]} 11. h5 {[%clk
0:02:20.7]} 11... Qe6+ {[%clk 0:02:48.4]} 12. Ne5+ {[%clk 0:02:16.4]} 12... Nxe5
{[%clk 0:02:47.4]} 13. fxe5 {[%clk 0:02:11.6]} 13... g5 {[%clk 0:02:44.6]} 14.
Bh3 {[%clk 0:02:06.6]} 14... Bf5 {[%clk 0:02:21.3]} 15. O-O {[%clk 0:02:01.5]}
15... Ke8 {[%clk 0:02:03.3]} 16. Bxf5 {[%clk 0:01:57.5]} 16... Qg8 {[%clk
0:02:03.7]} 17. Bc8 {[%clk 0:01:49.2]} 17... Kd8 {[%clk 0:01:59.3]} 18. Bxb7
{[%clk 0:01:45.9]} 18... Nd7 {[%clk 0:01:56.2]} 19. Bxa8 {[%clk 0:01:45.5]}
19... Qe6 {[%clk 0:01:56.8]} 20. Qf3 {[%clk 0:01:38.2]} 20... Kc7 {[%clk
0:01:53.6]} 21. c4 {[%clk 0:01:30.7]} 21... g4 {[%clk 0:01:45.5]} 22. Qa3 {[%clk
0:01:27.1]} 22... g3 {[%clk 0:01:38]} 23. Qxa7+ {[%clk 0:01:24.1]} 23... Kd8
{[%clk 0:01:36.9]} 24. Qa5+ {[%clk 0:01:17]} 24... Kc8 {[%clk 0:01:19]} 25. Rf3
{[%clk 0:01:12.7]} 25... Qh3 {[%clk 0:01:15.5]} 26. Bb7+ {[%clk 0:01:09]} 26...
Kxb7 {[%clk 0:00:54.4]} 27. Rb3+ {[%clk 0:01:09]} 27... Kc8 {[%clk 0:00:52.8]}
28. Qa8+ {[%clk 0:01:08.8]} 28... Kc7 {[%clk 0:00:53]} 29. Rb7# {[%clk
0:01:03.2]} 1-0

[Event "*** SCC Grand Prix: Titled Tuesday Blitz"]
[Site "Chess.com"]
[Date "2020.08.25"]
[Round "3"]
[White "MarcoCorvi"]
[Black "serhanberat_ozdemir"]
[Result "0-1"]
[WhiteElo "2229"]
[BlackElo "2495"]
[TimeControl "180+1"]
[EndTime "10:28:21 PDT"]
[Termination "serhanberat_ozdemir won on time"]

1. c4 {[%clk 0:03:00.9]} 1... Nf6 {[%clk 0:03:00]} 2. Nc3 {[%clk 0:03:00.7]}
2... g6 {[%clk 0:03:00.1]} 3. g3 {[%clk 0:02:59.8]} 3... Bg7 {[%clk 0:02:58.9]}
4. Bg2 {[%clk 0:03:00.5]} 4... O-O {[%clk 0:02:59.8]} 5. Nf3 {[%clk 0:03:00.9]}
5... d6 {[%clk 0:02:59.6]} 6. O-O {[%clk 0:03:01.4]} 6... c6 {[%clk 0:03:00.2]}
7. b3 {[%clk 0:03:00.1]} 7... Qa5 {[%clk 0:02:57.6]} 8. Bb2 {[%clk 0:02:59.5]}
8... Qh5 {[%clk 0:02:58.1]} 9. d3 {[%clk 0:02:50.1]} 9... Bh3 {[%clk 0:02:57.6]}
10. Ne4 {[%clk 0:02:40.8]} 10... Nxe4 {[%clk 0:02:49]} 11. Bxg7 {[%clk 0:02:38]}
11... Nxf2 {[%clk 0:02:47]} 12. Rxf2 {[%clk 0:02:16.7]} 12... Kxg7 {[%clk
0:02:46.9]} 13. Bxh3 {[%clk 0:02:13.5]} 13... Qxh3 {[%clk 0:02:47.8]} 14. Qd2
{[%clk 0:02:13]} 14... Nd7 {[%clk 0:02:45.6]} 15. Raf1 {[%clk 0:02:13.1]} 15...
Qh5 {[%clk 0:02:33.8]} 16. Qc3+ {[%clk 0:02:08.8]} 16... e5 {[%clk 0:02:32.8]}
17. d4 {[%clk 0:01:59.1]} 17... Rae8 {[%clk 0:02:30.4]} 18. c5 {[%clk
0:01:46.6]} 18... dxc5 {[%clk 0:02:25.4]} 19. dxe5 {[%clk 0:01:44.8]} 19... Nxe5
{[%clk 0:02:25]} 20. g4 {[%clk 0:00:57.6]} 20... Qxg4+ {[%clk 0:02:20.3]} 21.
Rg2 {[%clk 0:00:57.6]} 21... Qe4 {[%clk 0:02:12.2]} 22. Rg5 {[%clk 0:00:32.6]}
22... f6 {[%clk 0:02:09.3]} 23. Nxe5 {[%clk 0:00:16.9]} 23... Rxe5 {[%clk
0:02:06]} 24. Rxe5 {[%clk 0:00:16.5]} 24... fxe5 {[%clk 0:02:05.6]} 25. Rxf8
{[%clk 0:00:14.4]} 25... Kxf8 {[%clk 0:02:06.5]} 26. e3 {[%clk 0:00:13.8]} 26...
b6 {[%clk 0:02:03.6]} 27. Kf2 {[%clk 0:00:11.9]} 27... Kg7 {[%clk 0:02:02.3]}
28. Qd2 {[%clk 0:00:08.2]} 28... Qd5 {[%clk 0:02:01.8]} 29. Qb2 {[%clk
0:00:02.9]} 29... Kf6 {[%clk 0:02:00.3]} 0-1

[Event "*** SCC Grand Prix: Titled Tuesday Blitz"]
[Site "Chess.com"]
[Date "2020.08.25"]
[Round "3"]
[White "oganromchess"]
[Black "Gahan-MG"]
[Result "0-1"]
[WhiteElo "2403"]
[BlackElo "2666"]
[TimeControl "180+1"]
[EndTime "10:28:22 PDT"]
[Termination "Gahan-MG won by resignation"]

1. e4 {[%clk 0:03:00.9]} 1... c5 {[%clk 0:02:59.2]} 2. Ne2 {[%clk 0:02:58.8]}
2... e6 {[%clk 0:02:59]} 3. d4 {[%clk 0:02:53.6]} 3... cxd4 {[%clk 0:02:59.9]}
4. Nxd4 {[%clk 0:02:53.2]} 4... a6 {[%clk 0:03:00.4]} 5. Nc3 {[%clk 0:02:51.4]}
5... b5 {[%clk 0:03:00.5]} 6. Bd3 {[%clk 0:02:48.8]} 6... Qb6 {[%clk 0:03:00.1]}
7. Be3 {[%clk 0:02:42.4]} 7... Bc5 {[%clk 0:02:58.9]} 8. Nce2 {[%clk 0:02:41.6]}
8... Nf6 {[%clk 0:02:54.2]} 9. h3 {[%clk 0:02:10.9]} 9... Bb7 {[%clk 0:02:53.4]}
10. O-O {[%clk 0:02:06.7]} 10... O-O {[%clk 0:02:51.1]} 11. b4 {[%clk 0:02:04]}
11... Bxb4 {[%clk 0:02:40.4]} 12. Nxb5 {[%clk 0:01:51.2]} 12... Bc5 {[%clk
0:02:39.9]} 13. Nbd4 {[%clk 0:01:48.5]} 13... Nxe4 {[%clk 0:02:36.1]} 14. Rb1
{[%clk 0:01:47.7]} 14... Qa7 {[%clk 0:02:35.3]} 15. Nf4 {[%clk 0:00:47.6]} 15...
e5 {[%clk 0:02:21.9]} 16. Nf5 {[%clk 0:00:14.5]} 16... Bxe3 {[%clk 0:02:04.3]}
17. fxe3 {[%clk 0:00:14.2]} 17... exf4 {[%clk 0:02:03.2]} 18. Rxf4 {[%clk
0:00:14.6]} 18... Nf6 {[%clk 0:01:47.8]} 19. Nh6+ {[%clk 0:00:10.4]} 19... Kh8
{[%clk 0:01:42.1]} 20. Rxb7 {[%clk 0:00:07.1]} 20... Qxe3+ {[%clk 0:01:35.6]}
21. Rf2 {[%clk 0:00:06.7]} 21... Qxh6 {[%clk 0:01:35.7]} 0-1

[Event "*** SCC Grand Prix: Titled Tuesday Blitz"]
[Site "Chess.com"]
[Date "2020.08.25"]
[Round "3"]
[White "BasilSmash"]
[Black "viniciusrego"]
[Result "0-1"]
[WhiteElo "2464"]
[BlackElo "2238"]
[TimeControl "180+1"]
[EndTime "10:28:23 PDT"]
[Termination "viniciusrego won by resignation"]

1. d4 {[%clk 0:02:58.2]} 1... Nf6 {[%clk 0:02:59.6]} 2. Nf3 {[%clk 0:02:57.5]}
2... e6 {[%clk 0:02:59.9]} 3. g3 {[%clk 0:02:57.4]} 3... Be7 {[%clk 0:02:58.7]}
4. Bg2 {[%clk 0:02:57.3]} 4... O-O {[%clk 0:02:59.6]} 5. O-O {[%clk 0:02:57.3]}
5... c5 {[%clk 0:02:59.5]} 6. dxc5 {[%clk 0:02:56.8]} 6... Na6 {[%clk
0:02:57.6]} 7. c4 {[%clk 0:02:53.8]} 7... Nxc5 {[%clk 0:02:56.9]} 8. Nc3 {[%clk
0:02:53.7]} 8... d6 {[%clk 0:02:53.8]} 9. b3 {[%clk 0:02:47.4]} 9... Nfe4 {[%clk
0:02:50.5]} 10. Nxe4 {[%clk 0:02:41.8]} 10... Nxe4 {[%clk 0:02:50.2]} 11. Bb2
{[%clk 0:02:41.5]} 11... Bf6 {[%clk 0:02:47.1]} 12. Qc2 {[%clk 0:02:39.2]} 12...
Bxb2 {[%clk 0:02:45.4]} 13. Qxb2 {[%clk 0:02:40.1]} 13... Qf6 {[%clk 0:02:44.7]}
14. Qc2 {[%clk 0:02:32]} 14... d5 {[%clk 0:02:34.4]} 15. Rad1 {[%clk 0:02:16.1]}
15... Rd8 {[%clk 0:02:25.2]} 16. e3 {[%clk 0:02:07.8]} 16... b6 {[%clk 0:02:19]}
17. cxd5 {[%clk 0:02:04.9]} 17... exd5 {[%clk 0:02:19.2]} 18. Nd4 {[%clk
0:01:55.9]} 18... Ba6 {[%clk 0:02:16.4]} 19. Rfe1 {[%clk 0:01:50.5]} 19... Rac8
{[%clk 0:02:16.3]} 20. Qb2 {[%clk 0:01:48.2]} 20... Rc5 {[%clk 0:01:54]} 21. b4
{[%clk 0:00:38.5]} 21... Rc7 {[%clk 0:01:42.4]} 22. b5 {[%clk 0:00:15.5]} 22...
Bb7 {[%clk 0:01:40.4]} 23. Nc6 {[%clk 0:00:15.1]} 23... Qxb2 {[%clk 0:01:34.4]}
0-1

[Event "*** SCC Grand Prix: Titled Tuesday Blitz"]
[Site "Chess.com"]
[Date "2020.08.25"]
[Round "3"]
[White "2346PL"]
[Black "tylityli"]
[Result "1-0"]
[WhiteElo "2475"]
[BlackElo "2197"]
[TimeControl "180+1"]
[EndTime "10:28:24 PDT"]
[Termination "2346PL won by resignation"]

1. d4 {[%clk 0:03:00.9]} 1... Nf6 {[%clk 0:02:59.4]} 2. Bg5 {[%clk 0:03:01]}
2... Ne4 {[%clk 0:02:57.5]} 3. h4 {[%clk 0:02:59.8]} 3... h6 {[%clk 0:02:56.7]}
4. Bf4 {[%clk 0:02:58.2]} 4... d5 {[%clk 0:02:57]} 5. Nd2 {[%clk 0:02:56.8]}
5... Bf5 {[%clk 0:02:55.5]} 6. f3 {[%clk 0:02:56.2]} 6... Nxd2 {[%clk 0:02:55]}
7. Qxd2 {[%clk 0:02:56.6]} 7... e6 {[%clk 0:02:52.2]} 8. e3 {[%clk 0:02:53.4]}
8... c5 {[%clk 0:02:51.7]} 9. Bxb8 {[%clk 0:02:51]} 9... Qxb8 {[%clk 0:02:40.1]}
10. Bb5+ {[%clk 0:02:51.3]} 10... Kd8 {[%clk 0:02:40.4]} 11. e4 {[%clk
0:02:46.9]} 11... Qg3+ {[%clk 0:02:33.1]} 12. Kf1 {[%clk 0:02:46.8]} 12... a6
{[%clk 0:02:15.8]} 13. Ba4 {[%clk 0:02:31.7]} 13... b5 {[%clk 0:02:12.1]} 14.
Qa5+ {[%clk 0:02:26.8]} 14... Qc7 {[%clk 0:02:04.5]} 15. Qxc7+ {[%clk
0:02:24.2]} 15... Kxc7 {[%clk 0:02:03.9]} 16. exf5 {[%clk 0:02:24.7]} 16... bxa4
{[%clk 0:02:03.3]} 17. fxe6 {[%clk 0:02:24.8]} 17... fxe6 {[%clk 0:02:02.3]} 18.
Ne2 {[%clk 0:02:16.4]} 18... Bd6 {[%clk 0:01:59.8]} 19. dxc5 {[%clk 0:02:15.1]}
19... Bxc5 {[%clk 0:01:59.6]} 20. Nf4 {[%clk 0:02:15.7]} 20... Kd6 {[%clk
0:01:58.9]} 21. Ke2 {[%clk 0:02:08.6]} 21... Rab8 {[%clk 0:01:58.2]} 22. b3
{[%clk 0:02:08.5]} 22... Rhf8 {[%clk 0:01:57]} 23. Nd3 {[%clk 0:02:03.7]} 23...
Bd4 {[%clk 0:01:54.9]} 24. Rad1 {[%clk 0:02:03.6]} 24... axb3 {[%clk 0:01:52.3]}
25. axb3 {[%clk 0:02:03.4]} 25... e5 {[%clk 0:01:52.2]} 26. h5 {[%clk
0:01:57.7]} 26... Rfc8 {[%clk 0:01:50]} 27. Ne1 {[%clk 0:01:50.9]} 27... Rc3
{[%clk 0:01:45.9]} 28. Rd3 {[%clk 0:01:49.7]} 28... Rbc8 {[%clk 0:01:45.1]} 29.
Rxc3 {[%clk 0:01:49.4]} 29... Rxc3 {[%clk 0:01:43.8]} 30. Kd2 {[%clk 0:01:49.7]}
30... Rc5 {[%clk 0:01:42]} 31. Nd3 {[%clk 0:01:49.3]} 31... Ra5 {[%clk 0:01:41]}
32. Rh4 {[%clk 0:01:41.4]} 32... Ra2 {[%clk 0:01:37.6]} 33. Rg4 {[%clk
0:01:40.6]} 33... e4 {[%clk 0:01:27.4]} 34. fxe4 {[%clk 0:01:39.9]} 34... dxe4
{[%clk 0:01:27.4]} 35. Rxe4 {[%clk 0:01:40.1]} 35... Bf6 {[%clk 0:01:27.4]} 36.
Ra4 {[%clk 0:01:39.5]} 36... Rxa4 {[%clk 0:01:26.7]} 37. bxa4 {[%clk 0:01:40.4]}
37... Kd5 {[%clk 0:01:25.1]} 38. Nb4+ {[%clk 0:01:37.7]} 38... Kc5 {[%clk
0:01:20.6]} 39. Nxa6+ {[%clk 0:01:38.6]} 39... Kb6 {[%clk 0:01:20.7]} 40. Nb4
{[%clk 0:01:34.9]} 40... Ka5 {[%clk 0:01:21]} 41. Nd5 {[%clk 0:01:35.1]} 41...
Bg5+ {[%clk 0:01:18.2]} 42. Kd3 {[%clk 0:01:34.2]} 42... Kxa4 {[%clk 0:01:18.3]}
43. Kc4 {[%clk 0:01:33.2]} 43... Ka5 {[%clk 0:01:18.1]} 44. Kc5 {[%clk 0:01:33]}
44... Ka6 {[%clk 0:01:18.3]} 45. Kc6 {[%clk 0:01:33.3]} 45... Ka5 {[%clk
0:01:18.1]} 46. c4 {[%clk 0:01:33.5]} 46... Ka4 {[%clk 0:01:17.3]} 47. c5 {[%clk
0:01:33.1]} 47... Kb3 {[%clk 0:01:17.5]} 48. Kd7 {[%clk 0:01:31.4]} 48... Kc4
{[%clk 0:01:17.7]} 49. c6 {[%clk 0:01:31.8]} 1-0

[Event "*** SCC Grand Prix: Titled Tuesday Blitz"]
[Site "Chess.com"]
[Date "2020.08.25"]
[Round "3"]
[White "AJSC02"]
[Black "dodorox"]
[Result "1-0"]
[WhiteElo "2302"]
[BlackElo "2074"]
[TimeControl "180+1"]
[EndTime "10:28:29 PDT"]
[Termination "AJSC02 won by resignation"]

1. e4 {[%clk 0:03:00.9]} 1... e6 {[%clk 0:02:59.6]} 2. d4 {[%clk 0:03:00.8]}
2... d5 {[%clk 0:02:59.4]} 3. Bd3 {[%clk 0:03:01.3]} 3... dxe4 {[%clk
0:02:56.4]} 4. Bxe4 {[%clk 0:03:02.2]} 4... Nf6 {[%clk 0:02:53.6]} 5. Bf3 {[%clk
0:03:01.2]} 5... c5 {[%clk 0:02:47.6]} 6. Ne2 {[%clk 0:03:00.9]} 6... Nc6 {[%clk
0:02:37.9]} 7. Be3 {[%clk 0:03:00.9]} 7... Qa5+ {[%clk 0:02:24.4]} 8. Nbc3
{[%clk 0:02:56.2]} 8... cxd4 {[%clk 0:02:10.4]} 9. Nxd4 {[%clk 0:02:55.9]} 9...
Bd7 {[%clk 0:01:40.2]} 10. O-O {[%clk 0:02:41.7]} 10... Be7 {[%clk 0:01:32]} 11.
Qe2 {[%clk 0:02:10.9]} 11... O-O {[%clk 0:01:26.7]} 12. Nb3 {[%clk 0:02:10.7]}
12... Qc7 {[%clk 0:00:56.9]} 13. Nb5 {[%clk 0:02:06.8]} 13... Qc8 {[%clk
0:00:56.8]} 14. Rfd1 {[%clk 0:02:03]} 14... a6 {[%clk 0:00:53.9]} 15. Nd6 {[%clk
0:02:02]} 15... Bxd6 {[%clk 0:00:44.4]} 16. Rxd6 {[%clk 0:02:02.9]} 16... Qc7
{[%clk 0:00:44.9]} 17. Rad1 {[%clk 0:02:01.3]} 17... Rad8 {[%clk 0:00:14.1]} 18.
Bf4 {[%clk 0:01:58.5]} 18... e5 {[%clk 0:00:09.3]} 19. Bxc6 {[%clk 0:01:25.8]}
19... Bxc6 {[%clk 0:00:07.4]} 20. Bxe5 {[%clk 0:01:25.2]} 20... Rfe8 {[%clk
0:00:05.2]} 21. Rxd8 {[%clk 0:01:21.8]} 1-0

[Event "*** SCC Grand Prix: Titled Tuesday Blitz"]
[Site "Chess.com"]
[Date "2020.08.25"]
[Round "3"]
[White "chesstatour"]
[Black "pedromartinez91"]
[Result "0-1"]
[WhiteElo "1894"]
[BlackElo "2454"]
[TimeControl "180+1"]
[EndTime "10:28:30 PDT"]
[Termination "pedromartinez91 won by resignation"]

1. c4 {[%clk 0:03:00.9]} 1... Nf6 {[%clk 0:02:55.1]} 2. Nc3 {[%clk 0:03:00.7]}
2... c6 {[%clk 0:02:54]} 3. d4 {[%clk 0:02:59.6]} 3... g6 {[%clk 0:02:53.4]} 4.
e4 {[%clk 0:02:57.6]} 4... d5 {[%clk 0:02:51.2]} 5. e5 {[%clk 0:02:52.7]} 5...
Ne4 {[%clk 0:02:50.5]} 6. Bd3 {[%clk 0:02:45.5]} 6... Nxc3 {[%clk 0:02:49.7]} 7.
bxc3 {[%clk 0:02:44.8]} 7... Bg7 {[%clk 0:02:49.5]} 8. f4 {[%clk 0:02:43.5]}
8... O-O {[%clk 0:02:43.7]} 9. Nf3 {[%clk 0:02:43.3]} 9... c5 {[%clk 0:02:40.9]}
10. O-O {[%clk 0:02:36.2]} 10... cxd4 {[%clk 0:02:40.7]} 11. cxd4 {[%clk
0:02:35.7]} 11... dxc4 {[%clk 0:02:40]} 12. Bxc4 {[%clk 0:02:36]} 12... Bg4
{[%clk 0:02:36.9]} 13. Be3 {[%clk 0:02:29.9]} 13... Nd7 {[%clk 0:02:29.5]} 14.
Qb3 {[%clk 0:01:28.5]} 14... Nb6 {[%clk 0:02:28.1]} 15. Rac1 {[%clk 0:01:04.5]}
15... Nxc4 {[%clk 0:02:27.2]} 16. Qxc4 {[%clk 0:01:01.4]} 16... Be6 {[%clk
0:02:26.3]} 17. Qe2 {[%clk 0:00:54.4]} 17... Rc8 {[%clk 0:02:21.4]} 18. Rfd1
{[%clk 0:00:39.6]} 18... Qd5 {[%clk 0:02:18.1]} 19. Ng5 {[%clk 0:00:30.2]} 19...
Qxa2 {[%clk 0:02:15.1]} 20. Qxa2 {[%clk 0:00:28.2]} 20... Bxa2 {[%clk 0:02:16]}
21. Ra1 {[%clk 0:00:28.6]} 21... Bd5 {[%clk 0:02:06.5]} 22. Rxa7 {[%clk
0:00:27.8]} 22... f6 {[%clk 0:02:06.6]} 23. Nf3 {[%clk 0:00:25.2]} 23... Rc3
{[%clk 0:02:06.5]} 24. Kf2 {[%clk 0:00:20.4]} 24... Rfc8 {[%clk 0:02:05.7]} 25.
Rd2 {[%clk 0:00:18.6]} 25... Kf7 {[%clk 0:02:01.5]} 26. Ne1 {[%clk 0:00:17.2]}
26... Bh6 {[%clk 0:01:56.9]} 27. Nd3 {[%clk 0:00:15.5]} 27... b6 {[%clk
0:01:48.6]} 28. g3 {[%clk 0:00:13.9]} 28... R8c4 {[%clk 0:01:44.7]} 29. Ra6
{[%clk 0:00:11]} 29... Be4 {[%clk 0:01:43.2]} 30. Ne1 {[%clk 0:00:09.5]} 30...
Rb4 {[%clk 0:01:41.9]} 31. Nd3 {[%clk 0:00:07.2]} 31... Bxd3 {[%clk 0:01:40.9]}
0-1